[Event "Titled Tuesday Blitz June 6 Early 2023"]
[White "Pranesh M"]
[Black "Hambleton, Aman"]
[WhiteFideId "35028600"]
[BlackFideId "2606577"]
[WhiteElo "2437"]
[BlackElo "2511"]
[Result "1/2-1/2"]
[Round "5"]
[TimeControl "180+2"]
[Date "2023.06.06"]
[WhiteClock "0:00:31"]
[BlackClock "0:00:05"]
[Board "8"]

1. e4 {[%clk 0:03:00]}  b6 {[%clk 0:02:53]} 2. d4 {[%clk 0:03:01]}  Bb7 {[%clk 0:02:52]} 3. Bd3 {[%clk 0:03:01]}  e6 {[%clk 0:02:52]} 4. Nd2 {[%clk 0:03:00]}  Nf6 {[%clk 0:02:25]} 5. Ngf3 {[%clk 0:03:00]}  d5 {[%clk 0:02:25]} 6. e5 {[%clk 0:03:01]}  Ne4 {[%clk 0:02:25]} 7. O-O {[%clk 0:03:01]}  Be7 {[%clk 0:02:15]} 8. c3 {[%clk 0:03:00]}  Nxd2 {[%clk 0:02:11]} 9. Bxd2 {[%clk 0:03:01]}  c5 {[%clk 0:02:05]} 10. h4 {[%clk 0:02:56]}  h6 {[%clk 0:01:57]} 11. h5 {[%clk 0:02:49]}  Qd7 {[%clk 0:01:52]} 12. a3 {[%clk 0:02:47]}  Ba6 {[%clk 0:01:48]} 13. Be3 {[%clk 0:02:43]}  Bxd3 {[%clk 0:01:40]} 14. Qxd3 {[%clk 0:02:44]}  Nc6 {[%clk 0:01:28]} 15. b4 {[%clk 0:02:40]}  cxd4 {[%clk 0:01:13]} 16. cxd4 {[%clk 0:02:38]}  O-O-O {[%clk 0:01:09]} 17. Nd2 {[%clk 0:02:21]}  Kb7 {[%clk 0:00:54]} 18. Nb3 {[%clk 0:02:21]}  Rc8 {[%clk 0:00:34]} 19. Bd2 {[%clk 0:02:15]}  f6 {[%clk 0:00:29]} 20. f4 {[%clk 0:02:11]}  fxe5 {[%clk 0:00:12]} 21. fxe5 {[%clk 0:02:12]}  Bg5 {[%clk 0:00:12]} 22. b5 {[%clk 0:02:00]}  Ne7 {[%clk 0:00:08]} 23. Rf7 {[%clk 0:02:01]}  Bxd2 {[%clk 0:00:03]} 24. Qxd2 {[%clk 0:02:01]}  Qe8 {[%clk 0:00:01]} 25. Rxg7 {[%clk 0:02:00]}  Rc7 {[%clk 0:00:02]} 26. a4 {[%clk 0:01:52]}  Nf5 {[%clk 0:00:02]} 27. Rxc7+ {[%clk 0:01:51]}  Kxc7 {[%clk 0:00:03]} 28. Rc1+ {[%clk 0:01:48]}  Kb8 {[%clk 0:00:03]} 29. Rc6 {[%clk 0:01:38]}  Rg8 {[%clk 0:00:03]} 30. Qf4 {[%clk 0:00:48]}  Qxh5 {[%clk 0:00:03]} 31. Rxe6 {[%clk 0:00:48]}  Qd1+ {[%clk 0:00:03]} 32. Qf1 {[%clk 0:00:48]}  Qxb3 {[%clk 0:00:03]} 33. Qxf5 {[%clk 0:00:48]}  Qe3+ {[%clk 0:00:04]} 34. Qf2 {[%clk 0:00:44]}  Qc1+ {[%clk 0:00:04]} 35. Kh2 {[%clk 0:00:44]}  Qg5 {[%clk 0:00:04]} 36. Rf6 {[%clk 0:00:42]}  Qh5+ {[%clk 0:00:05]} 37. Kg1 {[%clk 0:00:42]}  Qd1+ {[%clk 0:00:05]} 38. Kh2 {[%clk 0:00:33]}  Qh5+ {[%clk 0:00:06]} 39. Kg1 {[%clk 0:00:33]}  Qd1+ {[%clk 0:00:06]} 40. Qf1 {[%clk 0:00:34]}  Qxd4+ {[%clk 0:00:06]} 41. Qf2 {[%clk 0:00:34]}  Qd1+ {[%clk 0:00:06]} 42. Qf1 {[%clk 0:00:33]}  Qd4+ {[%clk 0:00:05]} 43. Kh1 {[%clk 0:00:30]}  Qh4+ {[%clk 0:00:05]} 44. Kg1 {[%clk 0:00:31]}  Qd4+ {[%clk 0:00:05]} 1/2-1/2


[Site "https://www.chess.com"]

[Event "Titled Tuesday Blitz June 6 Early 2023"]
[White "Grischuk, Alexander"]
[Black "Kravtsiv, Martyn"]
[WhiteFideId "4126025"]
[BlackFideId "14113147"]
[WhiteElo "2721"]
[BlackElo "2695"]
[Result "1/2-1/2"]
[Round "5"]
[TimeControl "180+2"]
[Date "2023.06.06"]
[WhiteClock "0:00:06"]
[BlackClock "0:00:19"]
[Board "9"]

1. Nf3 {[%clk 0:02:58]}  d5 {[%clk 0:02:59]} 2. g3 {[%clk 0:02:58]}  Nf6 {[%clk 0:02:58]} 3. Bg2 {[%clk 0:02:58]}  e6 {[%clk 0:02:59]} 4. O-O {[%clk 0:02:58]}  Be7 {[%clk 0:02:59]} 5. c4 {[%clk 0:02:58]}  O-O {[%clk 0:02:59]} 6. d3 {[%clk 0:02:59]}  Nc6 {[%clk 0:02:58]} 7. Bf4 {[%clk 0:02:53]}  Bd6 {[%clk 0:02:51]} 8. Qc1 {[%clk 0:02:31]}  Bxf4 {[%clk 0:02:47]} 9. Qxf4 {[%clk 0:02:31]}  Re8 {[%clk 0:02:47]} 10. d4 {[%clk 0:02:14]}  dxc4 {[%clk 0:02:41]} 11. Na3 {[%clk 0:02:14]}  Nd5 {[%clk 0:02:34]} 12. Qc1 {[%clk 0:02:12]}  Nb6 {[%clk 0:02:22]} 13. Rd1 {[%clk 0:02:12]}  Bd7 {[%clk 0:02:02]} 14. Nxc4 {[%clk 0:02:08]}  Nxc4 {[%clk 0:01:56]} 15. Qxc4 {[%clk 0:02:09]}  Qe7 {[%clk 0:01:55]} 16. Rac1 {[%clk 0:02:08]}  Rac8 {[%clk 0:01:54]} 17. Qc5 {[%clk 0:01:58]}  Qxc5 {[%clk 0:01:51]} 18. Rxc5 {[%clk 0:01:59]}  b6 {[%clk 0:01:45]} 19. Rcc1 {[%clk 0:01:56]}  f6 {[%clk 0:00:55]} 20. Ne1 {[%clk 0:01:54]}  Nd8 {[%clk 0:00:54]} 21. Nd3 {[%clk 0:01:47]}  Bb5 {[%clk 0:00:53]} 22. e3 {[%clk 0:01:42]}  Bxd3 {[%clk 0:00:49]} 23. Rxd3 {[%clk 0:01:42]}  Re7 {[%clk 0:00:45]} 24. b4 {[%clk 0:01:30]}  c6 {[%clk 0:00:45]} 25. Rdc3 {[%clk 0:01:28]}  Rec7 {[%clk 0:00:44]} 26. a4 {[%clk 0:01:22]}  Kf8 {[%clk 0:00:41]} 27. f4 {[%clk 0:01:07]}  Ke7 {[%clk 0:00:34]} 28. Kf2 {[%clk 0:00:54]}  Kd7 {[%clk 0:00:33]} 29. e4 {[%clk 0:00:50]}  Nb7 {[%clk 0:00:31]} 30. e5 {[%clk 0:00:50]}  f5 {[%clk 0:00:29]} 31. Ke2 {[%clk 0:00:38]}  Nd8 {[%clk 0:00:28]} 32. Kd3 {[%clk 0:00:38]}  g6 {[%clk 0:00:28]} 33. b5 {[%clk 0:00:28]}  cxb5 {[%clk 0:00:17]} 34. Rxc7+ {[%clk 0:00:27]}  Rxc7 {[%clk 0:00:18]} 35. Rxc7+ {[%clk 0:00:26]}  Kxc7 {[%clk 0:00:18]} 36. axb5 {[%clk 0:00:27]}  Kd7 {[%clk 0:00:17]} 37. d5 {[%clk 0:00:15]}  exd5 {[%clk 0:00:17]} 38. Bxd5 {[%clk 0:00:14]}  Ke7 {[%clk 0:00:12]} 39. Ke3 {[%clk 0:00:14]}  h6 {[%clk 0:00:11]} 40. h3 {[%clk 0:00:12]}  h5 {[%clk 0:00:09]} 41. Kd3 {[%clk 0:00:08]}  Kd7 {[%clk 0:00:10]} 42. Kc4 {[%clk 0:00:07]}  Ke7 {[%clk 0:00:10]} 43. Kd4 {[%clk 0:00:07]}  Kd7 {[%clk 0:00:10]} 44. Kd3 {[%clk 0:00:07]}  Ke7 {[%clk 0:00:10]} 45. Ke3 {[%clk 0:00:07]}  Kd7 {[%clk 0:00:10]} 46. Ke2 {[%clk 0:00:03]}  Ke7 {[%clk 0:00:10]} 47. Kd2 {[%clk 0:00:03]}  Kd7 {[%clk 0:00:10]} 48. Kc3 {[%clk 0:00:03]}  Ke7 {[%clk 0:00:11]} 49. Kb4 {[%clk 0:00:04]}  Kd7 {[%clk 0:00:11]} 50. Kc4 {[%clk 0:00:04]}  Ke7 {[%clk 0:00:11]} 51. Kd4 {[%clk 0:00:05]}  Kd7 {[%clk 0:00:11]} 52. Ke3 {[%clk 0:00:05]}  Ke7 {[%clk 0:00:12]} 53. Kf3 {[%clk 0:00:05]}  Kd7 {[%clk 0:00:12]} 54. g4 {[%clk 0:00:05]}  h4 {[%clk 0:00:12]} 55. gxf5 {[%clk 0:00:05]}  gxf5 {[%clk 0:00:12]} 56. Ke3 {[%clk 0:00:06]}  Ke7 {[%clk 0:00:12]} 57. Kd4 {[%clk 0:00:06]}  Kd7 {[%clk 0:00:12]} 58. Ke3 {[%clk 0:00:07]}  Ke7 {[%clk 0:00:12]} 59. Bc4 {[%clk 0:00:06]}  Kd7 {[%clk 0:00:12]} 60. Bd3 {[%clk 0:00:06]}  Ke6 {[%clk 0:00:13]} 61. Bc4+ {[%clk 0:00:06]}  Ke7 {[%clk 0:00:13]} 62. Bd5 {[%clk 0:00:06]}  Kd7 {[%clk 0:00:12]} 63. Bg8 {[%clk 0:00:06]}  Ke7 {[%clk 0:00:12]} 64. Bh7 {[%clk 0:00:06]}  Ke6 {[%clk 0:00:12]} 65. Kd4 {[%clk 0:00:06]}  Nb7 {[%clk 0:00:13]} 66. Bg8+ {[%clk 0:00:06]}  Ke7 {[%clk 0:00:13]} 67. Kd5 {[%clk 0:00:06]}  Nc5 {[%clk 0:00:13]} 68. Bh7 {[%clk 0:00:06]}  Nd3 {[%clk 0:00:14]} 69. Bxf5 {[%clk 0:00:07]}  Nxf4+ {[%clk 0:00:14]} 70. Kc6 {[%clk 0:00:07]}  Ne2 {[%clk 0:00:14]} 71. Kb7 {[%clk 0:00:05]}  Nd4 {[%clk 0:00:15]} 72. Bd3 {[%clk 0:00:05]}  Ke6 {[%clk 0:00:15]} 73. Kxa7 {[%clk 0:00:05]}  Kxe5 {[%clk 0:00:15]} 74. Kxb6 {[%clk 0:00:06]}  Nxb5 {[%clk 0:00:15]} 75. Kxb5 {[%clk 0:00:06]}  Kf6 {[%clk 0:00:16]} 76. Be2 {[%clk 0:00:06]}  Kg7 {[%clk 0:00:17]} 77. Bg4 {[%clk 0:00:07]}  Kh8 {[%clk 0:00:18]} 78. Kc5 {[%clk 0:00:06]}  Kg8 {[%clk 0:00:19]} 79. Kd4 {[%clk 0:00:06]} 1/2-1/2


[Site "https://www.chess.com"]

[Event "Titled Tuesday Blitz June 6 Early 2023"]
[White "Tabatabaei, M. Amin"]
[Black "Nguyen, Ngoc Truong Son"]
[WhiteFideId "12521213"]
[BlackFideId "12401110"]
[WhiteElo "2575"]
[BlackElo "2556"]
[Result "1/2-1/2"]
[Round "5"]
[TimeControl "180+2"]
[Date "2023.06.06"]
[WhiteClock "0:00:11"]
[BlackClock "0:00:05"]
[Board "10"]

1. Nf3 {[%clk 0:03:00]}  d5 {[%clk 0:02:59]} 2. b3 {[%clk 0:03:00]}  c6 {[%clk 0:02:59]} 3. Bb2 {[%clk 0:03:01]}  Bf5 {[%clk 0:02:59]} 4. g3 {[%clk 0:03:01]}  e6 {[%clk 0:02:59]} 5. Bg2 {[%clk 0:03:01]}  Nf6 {[%clk 0:02:59]} 6. O-O {[%clk 0:03:02]}  h6 {[%clk 0:02:58]} 7. d3 {[%clk 0:03:02]}  Be7 {[%clk 0:02:58]} 8. Nbd2 {[%clk 0:03:03]}  O-O {[%clk 0:02:57]} 9. Re1 {[%clk 0:03:03]}  a5 {[%clk 0:02:55]} 10. e4 {[%clk 0:03:01]}  Bh7 {[%clk 0:02:54]} 11. a4 {[%clk 0:02:58]}  dxe4 {[%clk 0:02:42]} 12. dxe4 {[%clk 0:02:56]}  Na6 {[%clk 0:02:41]} 13. Ne5 {[%clk 0:02:48]}  Nb4 {[%clk 0:02:26]} 14. Nec4 {[%clk 0:02:39]}  b5 {[%clk 0:02:10]} 15. Ne3 {[%clk 0:02:35]}  Qb6 {[%clk 0:02:04]} 16. axb5 {[%clk 0:02:25]}  cxb5 {[%clk 0:02:05]} 17. e5 {[%clk 0:02:22]}  Nfd5 {[%clk 0:01:57]} 18. Bxd5 {[%clk 0:02:13]}  Nxd5 {[%clk 0:01:48]} 19. Nxd5 {[%clk 0:02:12]}  exd5 {[%clk 0:01:49]} 20. Nf3 {[%clk 0:01:59]}  Rfc8 {[%clk 0:01:38]} 21. Nd4 {[%clk 0:01:51]}  a4 {[%clk 0:01:31]} 22. e6 {[%clk 0:01:42]}  f6 {[%clk 0:01:31]} 23. bxa4 {[%clk 0:01:22]}  bxa4 {[%clk 0:01:29]} 24. Ba3 {[%clk 0:01:21]}  Rc4 {[%clk 0:01:03]} 25. c3 {[%clk 0:01:14]}  Bxa3 {[%clk 0:00:48]} 26. Rxa3 {[%clk 0:01:15]}  Qc5 {[%clk 0:00:44]} 27. Qa1 {[%clk 0:01:09]}  Be4 {[%clk 0:00:40]} 28. Re3 {[%clk 0:01:04]}  Rb8 {[%clk 0:00:37]} 29. Re1 {[%clk 0:01:01]}  Kh7 {[%clk 0:00:15]} 30. e7 {[%clk 0:00:55]}  Re8 {[%clk 0:00:10]} 31. Rxa4 {[%clk 0:00:25]}  Rxa4 {[%clk 0:00:08]} 32. Qxa4 {[%clk 0:00:26]}  Rxe7 {[%clk 0:00:08]} 33. Qb4 {[%clk 0:00:22]}  Rc7 {[%clk 0:00:08]} 34. f3 {[%clk 0:00:20]}  Bg6 {[%clk 0:00:06]} 35. Qxc5 {[%clk 0:00:20]}  Rxc5 {[%clk 0:00:07]} 36. Re3 {[%clk 0:00:21]}  h5 {[%clk 0:00:07]} 37. h3 {[%clk 0:00:20]}  Ra5 {[%clk 0:00:07]} 38. g4 {[%clk 0:00:21]}  h4 {[%clk 0:00:07]} 39. Re7 {[%clk 0:00:14]}  Kh6 {[%clk 0:00:04]} 40. Ne6 {[%clk 0:00:10]}  Ra3 {[%clk 0:00:04]} 41. Rc7 {[%clk 0:00:10]}  Ra1+ {[%clk 0:00:04]} 42. Kf2 {[%clk 0:00:10]}  Rh1 {[%clk 0:00:04]} 43. Kg2 {[%clk 0:00:11]}  Rc1 {[%clk 0:00:04]} 44. Nxg7 {[%clk 0:00:10]}  Rc2+ {[%clk 0:00:05]} 45. Kg1 {[%clk 0:00:11]}  d4 {[%clk 0:00:05]} 46. Ne6 {[%clk 0:00:04]}  d3 {[%clk 0:00:06]} 47. Rd7 {[%clk 0:00:02]}  d2 {[%clk 0:00:06]} 48. Kf1 {[%clk 0:00:02]}  Rxc3 {[%clk 0:00:06]} 49. Ke2 {[%clk 0:00:02]}  Ra3 {[%clk 0:00:03]} 50. Kxd2 {[%clk 0:00:02]}  Rxf3 {[%clk 0:00:03]} 51. Nf8 {[%clk 0:00:01]}  Rxh3 {[%clk 0:00:03]} 52. Ke2 {[%clk 0:00:02]}  Rg3 {[%clk 0:00:04]} 53. Rd4 {[%clk 0:00:02]}  h3 {[%clk 0:00:04]} 54. Kf2 {[%clk 0:00:03]}  Rg2+ {[%clk 0:00:04]} 55. Kf3 {[%clk 0:00:04]}  Rg1 {[%clk 0:00:04]} 56. Rd2 {[%clk 0:00:04]}  Kg5 {[%clk 0:00:04]} 57. Ne6+ {[%clk 0:00:05]}  Kh4 {[%clk 0:00:04]} 58. Nf4 {[%clk 0:00:03]}  Be8 {[%clk 0:00:04]} 59. Rd8 {[%clk 0:00:03]}  Bc6+ {[%clk 0:00:04]} 60. Kf2 {[%clk 0:00:03]}  Rxg4 {[%clk 0:00:04]} 61. Rh8+ {[%clk 0:00:04]}  Kg5 {[%clk 0:00:04]} 62. Nxh3+ {[%clk 0:00:04]}  Kf5 {[%clk 0:00:05]} 63. Rh5+ {[%clk 0:00:04]}  Kg6 {[%clk 0:00:05]} 64. Rc5 {[%clk 0:00:04]}  Rg2+ {[%clk 0:00:06]} 65. Kf1 {[%clk 0:00:04]}  Rg3 {[%clk 0:00:06]} 66. Nf4+ {[%clk 0:00:04]}  Kf7 {[%clk 0:00:07]} 67. Ke2 {[%clk 0:00:03]}  Be4 {[%clk 0:00:06]} 68. Rc7+ {[%clk 0:00:03]}  Ke8 {[%clk 0:00:06]} 69. Ne6 {[%clk 0:00:03]}  f5 {[%clk 0:00:06]} 70. Kf2 {[%clk 0:00:03]}  Rf3+ {[%clk 0:00:06]} 71. Ke2 {[%clk 0:00:04]}  Ra3 {[%clk 0:00:07]} 72. Kd2 {[%clk 0:00:03]}  Rd3+ {[%clk 0:00:07]} 73. Ke2 {[%clk 0:00:04]}  Ra3 {[%clk 0:00:07]} 74. Rg7 {[%clk 0:00:04]}  Bd3+ {[%clk 0:00:06]} 75. Kd2 {[%clk 0:00:03]}  Bc4 {[%clk 0:00:06]} 76. Nf4 {[%clk 0:00:02]}  Rf3 {[%clk 0:00:05]} 77. Nh5 {[%clk 0:00:02]}  Kf8 {[%clk 0:00:05]} 78. Rc7 {[%clk 0:00:02]}  Bf7 {[%clk 0:00:05]} 79. Nf6 {[%clk 0:00:02]}  Be6 {[%clk 0:00:05]} 80. Nh7+ {[%clk 0:00:02]}  Ke8 {[%clk 0:00:06]} 81. Ng5 {[%clk 0:00:03]}  Rf2+ {[%clk 0:00:05]} 82. Ke3 {[%clk 0:00:03]}  Rf1 {[%clk 0:00:06]} 83. Kd4 {[%clk 0:00:04]}  Bd7 {[%clk 0:00:05]} 84. Ke5 {[%clk 0:00:04]}  Kd8 {[%clk 0:00:05]} 85. Ra7 {[%clk 0:00:03]}  Re1+ {[%clk 0:00:06]} 86. Kf4 {[%clk 0:00:03]}  Rf1+ {[%clk 0:00:06]} 87. Ke5 {[%clk 0:00:04]}  Re1+ {[%clk 0:00:06]} 88. Kf6 {[%clk 0:00:04]}  f4 {[%clk 0:00:06]} 89. Nf7+ {[%clk 0:00:05]}  Kc8 {[%clk 0:00:06]} 90. Nd6+ {[%clk 0:00:05]}  Kd8 {[%clk 0:00:06]} 91. Nf7+ {[%clk 0:00:05]}  Kc8 {[%clk 0:00:07]} 92. Ne5 {[%clk 0:00:05]}  Bb5 {[%clk 0:00:06]} 93. Ra5 {[%clk 0:00:04]}  Be2 {[%clk 0:00:05]} 94. Ra3 {[%clk 0:00:02]}  f3 {[%clk 0:00:05]} 95. Rc3+ {[%clk 0:00:02]}  Kb7 {[%clk 0:00:05]} 96. Rb3+ {[%clk 0:00:03]}  Ka6 {[%clk 0:00:05]} 97. Nxf3 {[%clk 0:00:02]}  Rf1 {[%clk 0:00:06]} 98. Ke5 {[%clk 0:00:03]}  Bxf3 {[%clk 0:00:06]} 99. Kd4 {[%clk 0:00:04]}  Bc6 {[%clk 0:00:06]} 100. Ra3+ {[%clk 0:00:04]}  Kb6 {[%clk 0:00:06]} 101. Re3 {[%clk 0:00:05]}  Rd1+ {[%clk 0:00:06]} 102. Ke5 {[%clk 0:00:06]}  Rd5+ {[%clk 0:00:06]} 103. Kf4 {[%clk 0:00:06]}  Kc7 {[%clk 0:00:07]} 104. Re5 {[%clk 0:00:06]}  Rd4+ {[%clk 0:00:07]} 105. Kg3 {[%clk 0:00:06]}  Kd6 {[%clk 0:00:07]} 106. Rg5 {[%clk 0:00:07]}  Bd5 {[%clk 0:00:07]} 107. Rg6+ {[%clk 0:00:07]}  Ke5 {[%clk 0:00:08]} 108. Rg4 {[%clk 0:00:08]}  Be4 {[%clk 0:00:08]} 109. Rg5+ {[%clk 0:00:08]}  Bf5 {[%clk 0:00:08]} 110. Rg7 {[%clk 0:00:07]}  Rd3+ {[%clk 0:00:09]} 111. Kh4 {[%clk 0:00:07]}  Kf4 {[%clk 0:00:10]} 112. Rg4+ {[%clk 0:00:07]}  Ke5 {[%clk 0:00:10]} 113. Rg3 {[%clk 0:00:08]}  Rd8 {[%clk 0:00:10]} 114. Kg5 {[%clk 0:00:08]}  Rg8+ {[%clk 0:00:10]} 115. Kh4 {[%clk 0:00:08]}  Rh8+ {[%clk 0:00:10]} 116. Kg5 {[%clk 0:00:09]}  Rg8+ {[%clk 0:00:10]} 117. Kh4 {[%clk 0:00:10]}  Rd8 {[%clk 0:00:10]} 118. Kg5 {[%clk 0:00:11]}  Rd1 {[%clk 0:00:09]} 119. Re3+ {[%clk 0:00:11]}  Be4 {[%clk 0:00:10]} 120. Rg3 {[%clk 0:00:12]}  Rf1 {[%clk 0:00:10]} 121. Rg4 {[%clk 0:00:12]}  Rf6 {[%clk 0:00:10]} 122. Rg3 {[%clk 0:00:12]}  Rg6+ {[%clk 0:00:10]} 123. Kh4 {[%clk 0:00:12]}  Ra6 {[%clk 0:00:09]} 124. Kg5 {[%clk 0:00:13]}  Ra4 {[%clk 0:00:10]} 125. Rg4 {[%clk 0:00:13]}  Ra5 {[%clk 0:00:10]} 126. Rg3 {[%clk 0:00:13]}  Ra1 {[%clk 0:00:08]} 127. Rg4 {[%clk 0:00:13]}  Bf3 {[%clk 0:00:08]} 128. Rg3 {[%clk 0:00:13]}  Ke4 {[%clk 0:00:09]} 129. Kh4 {[%clk 0:00:14]}  Rh1+ {[%clk 0:00:07]} 130. Kg5 {[%clk 0:00:14]}  Rh8 {[%clk 0:00:08]} 131. Kf6 {[%clk 0:00:14]}  Kf4 {[%clk 0:00:08]} 132. Rg7 {[%clk 0:00:14]}  Bd5 {[%clk 0:00:08]} 133. Rc7 {[%clk 0:00:14]}  Rh6+ {[%clk 0:00:08]} 134. Ke7 {[%clk 0:00:14]}  Ke5 {[%clk 0:00:07]} 135. Kd7 {[%clk 0:00:15]}  Be6+ {[%clk 0:00:07]} 136. Ke7 {[%clk 0:00:16]}  Bd5 {[%clk 0:00:07]} 137. Kd7 {[%clk 0:00:16]}  Rd6+ {[%clk 0:00:07]} 138. Ke7 {[%clk 0:00:16]}  Bc6 {[%clk 0:00:08]} 139. Ra7 {[%clk 0:00:14]}  Re6+ {[%clk 0:00:07]} 140. Kd8 {[%clk 0:00:14]}  Rh6 {[%clk 0:00:07]} 141. Rc7 {[%clk 0:00:11]}  Kd5 {[%clk 0:00:07]} 142. Ke7 {[%clk 0:00:11]}  Re6+ {[%clk 0:00:06]} 143. Kf7 {[%clk 0:00:11]}  Kd6 {[%clk 0:00:06]} 144. Ra7 {[%clk 0:00:11]}  Re1 {[%clk 0:00:05]} 145. Kf6 {[%clk 0:00:10]}  Rf1+ {[%clk 0:00:04]} 146. Kg5 {[%clk 0:00:10]}  Ke5 {[%clk 0:00:05]} 147. Re7+ {[%clk 0:00:10]}  Kd6 {[%clk 0:00:05]} 148. Rg7 {[%clk 0:00:11]}  Bd5 {[%clk 0:00:05]} 1/2-1/2


[Site "https://www.chess.com"]

[Event "Titled Tuesday Blitz June 6 Early 2023"]
[White "Petrosian, Karlen"]
[Black "Lenderman, Aleksandr"]
[WhiteFideId "4176146"]
[BlackFideId "2021285"]
[WhiteElo "2345"]
[BlackElo "2607"]
[Result "0-1"]
[Round "5"]
[TimeControl "180+2"]
[Date "2023.06.06"]
[WhiteClock "0:00:30"]
[BlackClock "0:00:59"]
[Board "13"]

1. e4 {[%clk 0:03:00]}  e6 {[%clk 0:03:00]} 2. Qe2 {[%clk 0:03:00]}  e5 {[%clk 0:02:59]} 3. f4 {[%clk 0:02:59]}  d6 {[%clk 0:02:48]} 4. Nf3 {[%clk 0:02:35]}  Nc6 {[%clk 0:02:48]} 5. d3 {[%clk 0:02:30]}  Bg4 {[%clk 0:02:44]} 6. Qf2 {[%clk 0:02:27]}  exf4 {[%clk 0:02:40]} 7. Bxf4 {[%clk 0:02:23]}  Qf6 {[%clk 0:02:40]} 8. Bc1 {[%clk 0:02:21]}  Bxf3 {[%clk 0:02:41]} 9. gxf3 {[%clk 0:02:14]}  O-O-O {[%clk 0:02:40]} 10. Bg2 {[%clk 0:02:10]}  d5 {[%clk 0:02:37]} 11. O-O {[%clk 0:02:07]}  dxe4 {[%clk 0:02:36]} 12. fxe4 {[%clk 0:02:07]}  Qxf2+ {[%clk 0:02:36]} 13. Kxf2 {[%clk 0:02:07]}  Nd4 {[%clk 0:02:36]} 14. Na3 {[%clk 0:01:49]}  Bxa3 {[%clk 0:02:19]} 15. bxa3 {[%clk 0:01:50]}  Nxc2 {[%clk 0:02:20]} 16. Rb1 {[%clk 0:01:51]}  Nd4 {[%clk 0:02:20]} 17. Bb2 {[%clk 0:01:48]}  f6 {[%clk 0:02:16]} 18. Ke3 {[%clk 0:01:46]}  Nc6 {[%clk 0:02:14]} 19. Rfc1 {[%clk 0:01:36]}  Nge7 {[%clk 0:02:08]} 20. Bh3+ {[%clk 0:01:36]}  Kb8 {[%clk 0:02:07]} 21. Bc3 {[%clk 0:01:32]}  Rhe8 {[%clk 0:02:06]} 22. Be6 {[%clk 0:01:25]}  Ng6 {[%clk 0:02:01]} 23. Bf5 {[%clk 0:01:18]}  Nge5 {[%clk 0:01:49]} 24. d4 {[%clk 0:01:11]}  Nc4+ {[%clk 0:01:48]} 25. Kd3 {[%clk 0:01:07]}  Nd6 {[%clk 0:01:47]} 26. Bxh7 {[%clk 0:00:48]}  Rh8 {[%clk 0:01:47]} 27. Bg6 {[%clk 0:00:49]}  Rh3+ {[%clk 0:01:47]} 28. Kc2 {[%clk 0:00:49]}  Rxh2+ {[%clk 0:01:47]} 29. Kb3 {[%clk 0:00:49]}  Ne7 {[%clk 0:01:42]} 30. Rg1 {[%clk 0:00:46]}  Nxg6 {[%clk 0:01:42]} 31. Rxg6 {[%clk 0:00:47]}  Nxe4 {[%clk 0:01:42]} 32. Rxg7 {[%clk 0:00:47]}  Rh3 {[%clk 0:01:39]} 33. Rc1 {[%clk 0:00:48]}  a5 {[%clk 0:01:31]} 34. Kc4 {[%clk 0:00:45]}  b5+ {[%clk 0:01:26]} 35. Kxb5 {[%clk 0:00:42]}  Rxc3 {[%clk 0:01:24]} 36. Rb1 {[%clk 0:00:39]}  Ka7 {[%clk 0:01:22]} 37. Kxa5 {[%clk 0:00:37]}  Rd5+ {[%clk 0:01:20]} 38. Ka4 {[%clk 0:00:36]}  Rxd4+ {[%clk 0:01:14]} 39. Rb4 {[%clk 0:00:37]}  Rxb4+ {[%clk 0:01:14]} 40. axb4 {[%clk 0:00:37]}  Nd6 {[%clk 0:01:11]} 41. a3 {[%clk 0:00:33]}  Kb6 {[%clk 0:01:07]} 42. Rg6 {[%clk 0:00:32]}  f5 {[%clk 0:01:02]} 43. Rf6 {[%clk 0:00:30]}  Rd3 {[%clk 0:00:59]} 0-1


[Site "https://www.chess.com"]

[Event "Titled Tuesday Blitz June 6 Early 2023"]
[White "Koutlas, Nikolaos"]
[Black "Terry, Renato"]
[WhiteFideId "25827138"]
[BlackFideId "3803457"]
[WhiteElo "2215"]
[BlackElo "2575"]
[Result "0-1"]
[Round "5"]
[TimeControl "180+2"]
[Date "2023.06.06"]
[WhiteClock "0:00:06"]
[BlackClock "0:00:41"]
[Board "15"]

1. c4 {[%clk 0:02:53]}  e5 {[%clk 0:02:59]} 2. Nc3 {[%clk 0:02:52]}  Nc6 {[%clk 0:03:00]} 3. g3 {[%clk 0:02:52]}  g6 {[%clk 0:03:00]} 4. Bg2 {[%clk 0:02:52]}  Bg7 {[%clk 0:03:01]} 5. e4 {[%clk 0:02:51]}  d6 {[%clk 0:03:01]} 6. Nge2 {[%clk 0:02:51]}  h5 {[%clk 0:02:56]} 7. h3 {[%clk 0:02:50]}  h4 {[%clk 0:02:54]} 8. g4 {[%clk 0:02:50]}  f5 {[%clk 0:02:54]} 9. gxf5 {[%clk 0:02:44]}  gxf5 {[%clk 0:02:55]} 10. f4 {[%clk 0:02:44]}  Nf6 {[%clk 0:02:51]} 11. d3 {[%clk 0:02:39]}  Be6 {[%clk 0:02:43]} 12. Be3 {[%clk 0:02:35]}  Qd7 {[%clk 0:02:41]} 13. Qd2 {[%clk 0:02:14]}  fxe4 {[%clk 0:02:39]} 14. fxe5 {[%clk 0:02:07]}  dxe5 {[%clk 0:02:27]} 15. Nxe4 {[%clk 0:02:06]}  Nxe4 {[%clk 0:02:26]} 16. Bxe4 {[%clk 0:02:05]}  O-O-O {[%clk 0:02:26]} 17. O-O-O {[%clk 0:02:02]}  Kb8 {[%clk 0:02:21]} 18. Nc3 {[%clk 0:01:27]}  Nd4 {[%clk 0:02:19]} 19. Rhg1 {[%clk 0:01:22]}  Bxh3 {[%clk 0:02:17]} 20. Kb1 {[%clk 0:01:16]}  c6 {[%clk 0:01:56]} 21. Na4 {[%clk 0:01:10]}  Qc7 {[%clk 0:01:51]} 22. Bxd4 {[%clk 0:01:08]}  exd4 {[%clk 0:01:44]} 23. Nc5 {[%clk 0:01:04]}  Bc8 {[%clk 0:01:42]} 24. Bh1 {[%clk 0:00:55]}  Bf8 {[%clk 0:01:31]} 25. Ne4 {[%clk 0:00:50]}  Bh6 {[%clk 0:01:30]} 26. Qb4 {[%clk 0:00:48]}  Be3 {[%clk 0:01:29]} 27. Rg6 {[%clk 0:00:35]}  h3 {[%clk 0:00:56]} 28. Nc5 {[%clk 0:00:33]}  Qb6 {[%clk 0:00:56]} 29. Qa3 {[%clk 0:00:26]}  Rhg8 {[%clk 0:00:56]} 30. Rf6 {[%clk 0:00:18]}  h2 {[%clk 0:00:56]} 31. Na4 {[%clk 0:00:16]}  Qc7 {[%clk 0:00:56]} 32. Nc5 {[%clk 0:00:11]}  Rg1 {[%clk 0:00:55]} 33. Rff1 {[%clk 0:00:11]}  Bh3 {[%clk 0:00:50]} 34. Rfe1 {[%clk 0:00:07]}  Bf2 {[%clk 0:00:48]} 35. Rf1 {[%clk 0:00:05]}  Rxf1 {[%clk 0:00:48]} 36. Rxf1 {[%clk 0:00:05]}  Bxf1 {[%clk 0:00:49]} 37. Qb4 {[%clk 0:00:05]}  Qb6 {[%clk 0:00:48]} 38. Nd7+ {[%clk 0:00:04]}  Rxd7 {[%clk 0:00:48]} 39. Qf8+ {[%clk 0:00:05]}  Qd8 {[%clk 0:00:48]} 40. Qxf2 {[%clk 0:00:06]}  Bxd3+ {[%clk 0:00:48]} 41. Ka1 {[%clk 0:00:06]}  Bxc4 {[%clk 0:00:41]} 42. Qxh2+ {[%clk 0:00:05]}  Ka8 {[%clk 0:00:41]} 43. b3 {[%clk 0:00:06]}  d3 {[%clk 0:00:41]} 0-1


[Site "https://www.chess.com"]